[Event "POL-chT 2 Liga 2019"]
[Site "Poronin"]
[Date "2019.09.10"]
[Round "4.33"]
[White "Janaszak, Dawid"]
[Black "Adamczewski, Maciej"]
[Result "1-0"]
[ECO "E66"]
[WhiteElo "2351"]
[BlackElo "2109"]
[Annotator "NA"]
[PlyCount "83"]
[EventDate "2019.09.07"]
[EventType "team-tourn"]
[EventCountry "POL"]
[SourceTitle "playchess.com"]
[Source "ChessBase"]
[SourceQuality "1"]
[TimeControl "40/5400+30:1800+30"]

1. c4 {[%emt 0:00:00]} Nf6 {[%emt 0:00:00]} 2. g3 {[%emt 0:00:00]} g6 {[%emt 0:00:00]} 3. Bg2 {[%emt 0:00:00]} Bg7 {[%emt 0:00:06]} 4. Nf3 {[%emt 0:01:23]} O-O {[%emt 0:00:07]} 5. O-O {[%emt 0:00:06]} d6 {[%emt 0:00:04]} 6. Nc3 {[%emt 0:00:50]} c5 {[%emt 0:00:32]} 7. d4 {[%emt 0:02:07]} Nc6 {[%emt 0:00:48]} 8. d5 {[%emt 0:04:26]} Na5 {[%emt 0:00:19]} 9. Nd2 {[%emt 0:00:17]} a6 {[%emt 0:00:39]} 10. Rb1 {[%emt 0:03:00]} Rb8 {[%emt 0:02:21]} 11. e4 {[%emt 0:03:22]} e6 {[%emt 0:03:20]} 12. Qc2 {[%emt 0:03:20]} b5 {[%emt 0:06:34]} 13. b3 {[%emt 0:01:30]} Re8 {[%emt 0:09:38]} 14. Bb2 {[%emt 0:02:07]} bxc4 {[%emt 0:01:27]} 15. bxc4 {[%emt 0:03:00]} Ng4 {[%emt 0:00:35]} 16. Nd1 {[%emt 0:05:48]} Bxb2 {[%emt 0:03:58]} 17. Rxb2 {[%emt 0:00:41]} Rxb2 {[%emt 0:01:04]} 18. Qxb2 {[%emt 0:06:45]} exd5 {[%emt 0:03:59]} 19. cxd5 {[%emt 0:00:12]} Bd7 {[%emt 0:10:35]} 20. h3 {[%emt 0:12:58]} Ne5 {[%emt 0:05:17]} 21. f4 {[%emt 0:03:25]} Nec4 {[%emt 0:01:02]} 22. Nxc4 {[%emt 0:00:57]} Nxc4 {[%emt 0:00:05]} 23. Qe2 {[%emt 0:01:57]} Bb5 {[%emt 0:12:26]} 24. a4 {[%emt 0:01:25]} Bxa4 {[%emt 0:00:12]} 25. Qxc4 {[%emt 0:00:03]} Bb5 {[%emt 0:00:05]} 26. Qc3 {[%emt 0:12:26]} Bxf1 {[%emt 0:00:08]} 27. Kxf1 {[%emt 0:00:05]} Qb6 {[%emt 0:01:48]} 28. e5 {[%emt 0:05:06]} Qb1 {[%emt 0:04:09]} 29. Ke2 {[%emt 0:05:45]} Rb8 {[%emt 0:02:20]} 30. exd6 {[%emt 0:02:40]} Rb3 {[%emt 0:02:57]} 31. d7 {[%emt 0:03:11]} Rb8 {[%emt 0:03:01]} 32. Qxc5 {[%emt 0:02:05]} Qb7 {[%emt 0:09:24]} 33. Qc6 {[%emt 0:01:39]} Qb5+ {[%emt 0:00:43]} 34. Qxb5 {[%emt 0:04:49]} axb5 {[%emt 0:00:06]} 35. d6 {[%emt 0:00:24]} Kg7 {[%emt 0:01:40]} 36. Bb7 {[%emt 0:04:31]} Rd8 {[%emt 0:00:05]} 37. Bc8 {[%emt 0:00:19]} Kf6 {[%emt 0:00:40]} 38. Nf2 {[%emt 0:00:33]} Ke6 {[%emt 0:06:27]} 39. Ne4 {[%emt 0:00:18]} Kd5 {[%emt 0:00:08]} 40. Ng5 {[%emt 0:00:00]} b4 {[%emt 0:00:00]} 41. Nxf7 {[%emt 0:01:45]} b3 {[%emt 0:00:41]} 42. Kd3 {[%emt 0:00:07]} 1-0

[Event "POL-chT 2 Liga 2019"]
[Site "Poronin"]
[Date "2019.09.10"]
[Round "4.35"]
[White "Dudzinski, Pawel"]
[Black "Hasterok, Mateusz"]
[Result "1-0"]
[ECO "B25"]
[WhiteElo "2194"]
[BlackElo "1985"]
[Annotator "NA"]
[PlyCount "85"]
[EventDate "2019.09.07"]
[EventType "team-tourn"]
[EventCountry "POL"]
[SourceTitle "playchess.com"]
[Source "ChessBase"]
[SourceQuality "1"]
[TimeControl "40/5400+30:1800+30"]

1. e4 {[%emt 0:00:00]} c5 {[%emt 0:00:00]} 2. Nc3 {[%emt 0:00:00]} Nc6 {[%emt 0:00:00]} 3. g3 {[%emt 0:00:00]} g6 {[%emt 0:00:00]} 4. Bg2 {[%emt 0:00:00]} Bg7 {[%emt 0:00:00]} 5. d3 {[%emt 0:00:29]} d6 {[%emt 0:00:00]} 6. f4 {[%emt 0:00:17]} e6 {[%emt 0:03:41]} 7. Nf3 {[%emt 0:00:23]} Nge7 {[%emt 0:00:47]} 8. O-O {[%emt 0:00:30]} O-O {[%emt 0:01:14]} 9. h3 {[%emt 0:01:44]} Rb8 {[%emt 0:03:16]} 10. a4 {[%emt 0:01:57]} a6 {[%emt 0:03:31]} 11. Ne2 {[%emt 0:05:49]} f5 {[%emt 0:12:09]} 12. Kh2 {[%emt 0:26:01]} Qc7 {[%emt 0:08:59]} 13. c3 {[%emt 0:05:30]} b5 {[%emt 0:04:07]} 14. axb5 {[%emt 0:00:22]} axb5 {[%emt 0:00:01]} 15. exf5 {[%emt 0:03:41]} exf5 {[%emt 0:01:20]} 16. d4 {[%emt 0:00:45]} h6 {[%emt 0:03:52]} 17. Be3 {[%emt 0:11:21]} Nd5 {[%emt 0:08:57]} 18. Bf2 {[%emt 0:01:46]} c4 {[%emt 0:03:43]} 19. Ne5 {[%emt 0:04:17]} Nde7 {[%emt 0:06:23]} 20. Nxc6 {[%emt 0:02:12]} Nxc6 {[%emt 0:00:01]} 21. d5 {[%emt 0:13:55]} Na5 {[%emt 0:00:54]} 22. Nd4 {[%emt 0:02:00]} Bxd4 {[%emt 0:02:13]} 23. Bxd4 {[%emt 0:07:55]} Bb7 {[%emt 0:02:46]} 24. Re1 {[%emt 0:01:22]} Rbe8 {[%emt 0:01:55]} 25. Re6 {[%emt 0:00:58]} Rxe6 {[%emt 0:05:48]} 26. dxe6 {[%emt 0:00:01]} Bxg2 {[%emt 0:00:21]} 27. Kxg2 {[%emt 0:00:40]} Nc6 {[%emt 0:00:44]} 28. Bf2 {[%emt 0:04:27]} b4 {[%emt 0:09:53]} 29. Ra6 {[%emt 0:02:50]} bxc3 {[%emt 0:10:04]} 30. bxc3 {[%emt 0:00:01]} Rb8 {[%emt 0:03:00]} 31. Qf3 {[%emt 0:00:37]} Ne7 {[%emt 0:01:34]} 32. Ra7 {[%emt 0:00:27]} Qd8 {[%emt 0:00:04]} 33. Rd7 {[%emt 0:00:15]} Qe8 {[%emt 0:00:21]} 34. h4 {[%emt 0:02:32]} Rb2 {[%emt 0:00:58]} 35. Kh3 {[%emt 0:00:39]} g5 {[%emt 0:01:28]} 36. fxg5 {[%emt 0:00:25]} hxg5 {[%emt 0:00:04]} 37. hxg5 {[%emt 0:00:55]} Ng6 {[%emt 0:00:38]} 38. Bd4 {[%emt 0:01:19]} Ne5 {[%emt 0:01:37]} 39. Bxe5 {[%emt 0:00:26]} dxe5 {[%emt 0:00:01]} 40. g6 {[%emt 0:00:00]} f4 {[%emt 0:00:00]} 41. Qd5 {[%emt 0:02:55]} Rb8 {[%emt 0:06:23]} 42. Qxe5 {[%emt 0:00:25]} Qf8 {[%emt 0:00:26]} 43. Rg7+ {[%emt 0:00:35]} 1-0

[Event "POL-chT 2 Liga 2019"]
[Site "Poronin"]
[Date "2019.09.10"]
[Round "4.36"]
[White "Poznanska, Katarzyna"]
[Black "Czerwinska, Milena"]
[Result "0-1"]
[ECO "B53"]
[WhiteElo "2082"]
[BlackElo "2006"]
[Annotator "NA"]
[PlyCount "120"]
[EventDate "2019.09.07"]
[EventType "team-tourn"]
[EventCountry "POL"]
[SourceTitle "playchess.com"]
[Source "ChessBase"]
[SourceQuality "1"]
[TimeControl "40/5400+30:1800+30"]

1. e4 {[%emt 0:00:00]} c5 {[%emt 0:00:00]} 2. Nf3 {[%emt 0:00:00]} d6 {[%emt 0:00:00]} 3. d4 {[%emt 0:00:07]} cxd4 {[%emt 0:00:00]} 4. Qxd4 {[%emt 0:00:07]} Nc6 {[%emt 0:00:03]} 5. Bb5 {[%emt 0:00:11]} Bd7 {[%emt 0:01:12]} 6. Bxc6 {[%emt 0:00:29]} Bxc6 {[%emt 0:00:32]} 7. Nc3 {[%emt 0:00:06]} e6 {[%emt 0:02:45]} 8. Qd3 {[%emt 0:06:58]} Nf6 {[%emt 0:03:46]} 9. Bg5 {[%emt 0:00:58]} Be7 {[%emt 0:02:15]} 10. O-O-O {[%emt 0:00:35]} O-O {[%emt 0:05:27]} 11. Nd4 {[%emt 0:03:52]} Qa5 {[%emt 0:12:39]} 12. f4 {[%emt 0:02:41]} Rac8 {[%emt 0:08:45]} 13. h4 {[%emt 0:04:43]} Rfe8 {[%emt 0:07:18]} 14. f5 {[%emt 0:23:35]} Qe5 {[%emt 0:13:32]} 15. Nf3 {[%emt 0:05:43]} Qa5 {[%emt 0:05:00]} 16. Nd4 {[%emt 0:00:59]} Qe5 {[%emt 0:00:38]} 17. Nf3 {[%emt 0:00:40]} Qa5 {[%emt 0:01:24]} 18. Bf4 {[%emt 0:02:33]} b5 {[%emt 0:08:18]} 19. fxe6 {[%emt 0:08:14]} fxe6 {[%emt 0:00:10]} 20. a3 {[%emt 0:07:19]} d5 {[%emt 0:07:30]} 21. exd5 {[%emt 0:03:56]} Bxd5 {[%emt 0:01:55]} 22. Nxd5 {[%emt 0:00:56]} exd5 {[%emt 0:02:48]} 23. Be5 {[%emt 0:07:51]} b4 {[%emt 0:01:36]} 24. Bxf6 {[%emt 0:01:44]} Bxf6 {[%emt 0:00:48]} 25. Qxd5+ {[%emt 0:00:23]} Qxd5 {[%emt 0:00:07]} 26. Rxd5 {[%emt 0:00:01]} bxa3 {[%emt 0:00:16]} 27. bxa3 {[%emt 0:00:13]} Rc3 {[%emt 0:01:50]} 28. Re1 {[%emt 0:12:00]} Rxe1+ {[%emt 0:04:12]} 29. Nxe1 {[%emt 0:00:01]} Rxa3 {[%emt 0:00:14]} 30. Nf3 {[%emt 0:00:56]} a5 {[%emt 0:00:37]} 31. c4 {[%emt 0:03:56]} Rc3+ {[%emt 0:01:39]} 32. Kb1 {[%emt 0:00:55]} a4 {[%emt 0:00:47]} 33. Ra5 {[%emt 0:02:50]} Rxc4 {[%emt 0:00:48]} 34. h5 {[%emt 0:00:37]} h6 {[%emt 0:03:56]} 35. Ne5 {[%emt 0:00:27]} Rb4+ {[%emt 0:01:33]} 36. Ka2 {[%emt 0:00:39]} Bxe5 {[%emt 0:00:16]} 37. Rxe5 {[%emt 0:00:02]} Rg4 {[%emt 0:00:42]} 38. Re2 {[%emt 0:00:38]} Rg3 {[%emt 0:01:15]} 39. Rf2 {[%emt 0:00:16]} Kh7 {[%emt 0:01:03]} 40. Kb2 {[%emt 0:00:00]} Rg5 {[%emt 0:00:00]} 41. Ka3 {[%emt 0:00:23]} Rxh5 {[%emt 0:01:39]} 42. Kxa4 {[%emt 0:00:06]} Rc5 {[%emt 0:00:29]} 43. Kb4 {[%emt 0:00:06]} Rc1 {[%emt 0:00:25]} 44. Rf3 {[%emt 0:00:29]} Rc2 {[%emt 0:00:52]} 45. Rg3 {[%emt 0:00:18]} g5 {[%emt 0:01:42]} 46. Kb3 {[%emt 0:00:22]} Rc8 {[%emt 0:00:43]} 47. Rd3 {[%emt 0:01:00]} Kg6 {[%emt 0:02:39]} 48. Rd5 {[%emt 0:00:52]} h5 {[%emt 0:00:48]} 49. Re5 {[%emt 0:00:32]} h4 {[%emt 0:00:57]} 50. Rd5 {[%emt 0:00:20]} Kh5 {[%emt 0:01:01]} 51. Rd4 {[%emt 0:00:19]} g4 {[%emt 0:04:55]} 52. Rd7 {[%emt 0:01:15]} Kg5 {[%emt 0:00:49]} 53. Rh7 {[%emt 0:01:10]} Rc6 {[%emt 0:00:49]} 54. Rf7 {[%emt 0:01:01]} Rf6 {[%emt 0:00:26]} 55. Rh7 {[%emt 0:00:30]} Rh6 {[%emt 0:02:31]} 56. Rg7+ {[%emt 0:00:49]} Kf4 {[%emt 0:00:08]} 57. Kc3 {[%emt 0:00:06]} h3 {[%emt 0:00:46]} 58. gxh3 {[%emt 0:00:02]} gxh3 {[%emt 0:00:07]} 59. Rf7+ {[%emt 0:00:17]} Kg3 {[%emt 0:00:48]} 60. Kd3 {[%emt 0:00:24]} h2 {[%emt 0:00:19]} 0-1

[Event "POL-chT 2 Liga 2019"]
[Site "Poronin"]
[Date "2019.09.10"]
[Round "4.37"]
[White "Snihur, Piotr"]
[Black "Molenda, Marcin"]
[Result "0-1"]
[ECO "D70"]
[WhiteElo "2232"]
[BlackElo "2373"]
[Annotator "NA"]
[PlyCount "78"]
[EventDate "2019.09.07"]
[EventType "team-tourn"]
[EventCountry "POL"]
[SourceTitle "playchess.com"]
[Source "ChessBase"]
[SourceQuality "1"]
[TimeControl "40/5400+30:1800+30"]

1. d4 {[%emt 0:00:00]} Nf6 2. c4 {[%emt 0:00:00]} g6 {[%emt 0:00:00]} 3. f3 {[%emt 0:00:00]} d5 {[%emt 0:00:02]} 4. cxd5 {[%emt 0:00:02]} Nxd5 {[%emt 0:00:06]} 5. e4 {[%emt 0:00:13]} Nb6 {[%emt 0:00:09]} 6. Nc3 {[%emt 0:00:31]} Bg7 {[%emt 0:00:19]} 7. Be3 {[%emt 0:00:17]} O-O {[%emt 0:00:12]} 8. Qd2 {[%emt 0:00:12]} Nc6 {[%emt 0:00:47]} 9. O-O-O {[%emt 0:00:36]} f5 {[%emt 0:01:54]} 10. e5 {[%emt 0:00:19]} Nb4 {[%emt 0:01:10]} 11. Nh3 {[%emt 0:01:28]} a5 {[%emt 0:04:28]} 12. Kb1 {[%emt 0:09:12]} c6 {[%emt 0:03:44]} 13. Bh6 {[%emt 0:03:20]} N4d5 {[%emt 0:12:20]} 14. Bxg7 {[%emt 0:02:39]} Kxg7 {[%emt 0:02:16]} 15. Nf4 {[%emt 0:02:38]} Nxf4 {[%emt 0:01:56]} 16. Qxf4 {[%emt 0:00:07]} Be6 {[%emt 0:07:49]} 17. h4 {[%emt 0:09:27]} Nd5 {[%emt 0:01:30]} 18. Qd2 {[%emt 0:00:57]} a4 {[%emt 0:24:51]} 19. h5 {[%emt 0:02:57]} Rh8 {[%emt 0:00:05]} 20. Bd3 {[%emt 0:14:59]} Qa5 {[%emt 0:07:53]} 21. Rc1 {[%emt 0:13:19]} Qb4 {[%emt 0:02:54]} 22. Rh4 {[%emt 0:04:28]} Rad8 {[%emt 0:04:52]} 23. a3 {[%emt 0:08:24]} Qb3 {[%emt 0:07:19]} 24. Ne2 {[%emt 0:02:40]} Nb6 {[%emt 0:03:58]} 25. Rch1 {[%emt 0:02:10]} Bc4 {[%emt 0:08:23]} 26. Bc2 {[%emt 0:02:22]} Qa2+ {[%emt 0:00:09]} 27. Kc1 {[%emt 0:00:03]} Qa1+ {[%emt 0:01:00]} 28. Bb1 {[%emt 0:00:08]} Ba2 {[%emt 0:00:12]} 29. Nc3 {[%emt 0:10:04]} Nc4 {[%emt 0:00:14]} 30. Qc2 {[%emt 0:00:08]} Bb3 {[%emt 0:01:07]} 31. Qe2 {[%emt 0:00:29]} g5 {[%emt 0:00:13]} 32. h6+ {[%emt 0:00:36]} Kf8 {[%emt 0:00:29]} 33. Rh5 {[%emt 0:06:41]} Rxd4 {[%emt 0:00:43]} 34. Rxg5 {[%emt 0:03:27]} Rd2 {[%emt 0:01:09]} 35. Rxf5+ {[%emt 0:00:12]} Ke8 {[%emt 0:00:06]} 36. Qxd2 {[%emt 0:01:15]} Nxd2 {[%emt 0:00:05]} 37. Kxd2 {[%emt 0:00:09]} Qxb2+ {[%emt 0:00:04]} 38. Kd3 Bf7 {[%emt 0:00:59]} 39. Rxf7 {[%emt 0:02:20]} Kxf7 {[%emt 0:00:04]} 0-1

[Event "POL-chT 2 Liga 2019"]
[Site "Poronin"]
[Date "2019.09.10"]
[Round "4.38"]
[White "Czerw, Dawid"]
[Black "Szadkowski, Kamil"]
[Result "1/2-1/2"]
[ECO "A57"]
[WhiteElo "2269"]
[BlackElo "2245"]
[Annotator "NA"]
[PlyCount "72"]
[EventDate "2019.09.07"]
[EventType "team-tourn"]
[EventCountry "POL"]
[SourceTitle "playchess.com"]
[Source "ChessBase"]
[SourceQuality "1"]
[TimeControl "40/5400+30:1800+30"]

1. d4 {[%emt 0:00:00]} Nf6 {[%emt 0:00:00]} 2. c4 {[%emt 0:00:00]} c5 {[%emt 0:00:00]} 3. d5 {[%emt 0:00:00]} b5 {[%emt 0:00:00]} 4. cxb5 {[%emt 0:00:00]} a6 {[%emt 0:00:00]} 5. e3 {[%emt 0:00:00]} axb5 {[%emt 0:00:22]} 6. Bxb5 {[%emt 0:00:00]} Qa5+ {[%emt 0:00:08]} 7. Nc3 {[%emt 0:00:00]} Bb7 {[%emt 0:00:06]} 8. Bd2 {[%emt 0:02:02]} Qb6 {[%emt 0:00:14]} 9. Qf3 {[%emt 0:04:34]} e6 {[%emt 0:00:45]} 10. e4 {[%emt 0:06:22]} exd5 {[%emt 0:00:50]} 11. exd5 {[%emt 0:00:05]} Nxd5 {[%emt 0:00:13]} 12. Nxd5 {[%emt 0:03:09]} Qe6+ {[%emt 0:00:34]} 13. Kf1 {[%emt 0:00:20]} Qxd5 {[%emt 0:01:09]} 14. Re1+ {[%emt 0:12:20]} Be7 {[%emt 0:00:32]} 15. a4 {[%emt 0:06:10]} Na6 {[%emt 0:16:43]} 16. Bf4 {[%emt 0:11:56]} Nb4 {[%emt 0:10:37]} 17. Rd1 {[%emt 0:10:17]} Qxf3 {[%emt 0:03:04]} 18. Bxd7+ {[%emt 0:05:07]} Kf8 {[%emt 0:00:11]} 19. Nxf3 {[%emt 0:03:05]} Nd5 {[%emt 0:05:08]} 20. Bd2 {[%emt 0:07:23]} Bf6 {[%emt 0:01:53]} 21. Bb5 {[%emt 0:03:18]} Bxb2 {[%emt 0:08:24]} 22. Be3 {[%emt 0:03:57]} Ba3 {[%emt 0:07:44]} 23. Ne5 {[%emt 0:02:52]} Rd8 {[%emt 0:06:24]} 24. Nd7+ {[%emt 0:05:55]} Ke7 {[%emt 0:03:05]} 25. Rd3 {[%emt 0:02:33]} Bb4 {[%emt 0:02:02]} 26. Nxc5 {[%emt 0:01:27]} Nxe3+ {[%emt 0:05:41]} 27. Rxe3+ {[%emt 0:00:08]} Kf6 {[%emt 0:02:54]} 28. Nd7+ {[%emt 0:03:47]} Rxd7 {[%emt 0:01:52]} 29. Bxd7 {[%emt 0:00:01]} Rd8 {[%emt 0:00:09]} 30. Bg4 {[%emt 0:00:05]} Rd2 {[%emt 0:00:05]} 31. h4 Rb2 {[%emt 0:08:56]} 32. Rhh3 {[%emt 0:05:43]} Ba6+ {[%emt 0:01:45]} 33. Kg1 {[%emt 0:00:11]} Rb1+ {[%emt 0:00:05]} 34. Kh2 {[%emt 0:00:06]} Bd6+ {[%emt 0:00:02]} 35. Rhg3 {[%emt 0:02:00]} Rb4 {[%emt 0:02:47]} 36. Kh3 {[%emt 0:00:46]} Bxg3 {[%emt 0:00:18]} 1/2-1/2

[Event "POL-chT 2 Liga 2019"]
[Site "Poronin"]
[Date "2019.09.10"]
[Round "4.39"]
[White "Szadkowski, Krzysztof"]
[Black "Niedbala, Bartlomiej"]
[Result "1/2-1/2"]
[ECO "B06"]
[WhiteElo "2138"]
[BlackElo "2145"]
[Annotator "NA"]
[PlyCount "80"]
[EventDate "2019.09.07"]
[EventType "team-tourn"]
[EventCountry "POL"]
[SourceTitle "playchess.com"]
[Source "ChessBase"]
[SourceQuality "1"]
[TimeControl "40/5400+30:1800+30"]

1. e4 {[%emt 0:00:00]} g6 {[%emt 0:00:00]} 2. d4 {[%emt 0:00:00]} Bg7 {[%emt 0:00:00]} 3. f4 {[%emt 0:00:08]} c5 {[%emt 0:00:09]} 4. c3 {[%emt 0:00:45]} cxd4 {[%emt 0:00:07]} 5. cxd4 {[%emt 0:00:20]} d5 {[%emt 0:00:03]} 6. e5 {[%emt 0:00:41]} Nc6 {[%emt 0:00:14]} 7. Nc3 {[%emt 0:00:28]} Nh6 {[%emt 0:02:12]} 8. Bb5 {[%emt 0:01:16]} O-O {[%emt 0:00:58]} 9. Nf3 {[%emt 0:02:18]} Bg4 {[%emt 0:04:47]} 10. Bxc6 {[%emt 0:02:27]} bxc6 {[%emt 0:00:16]} 11. O-O {[%emt 0:00:08]} Nf5 {[%emt 0:02:09]} 12. h3 {[%emt 0:00:53]} Bxf3 {[%emt 0:01:51]} 13. Rxf3 {[%emt 0:00:02]} h5 {[%emt 0:25:50]} 14. g4 {[%emt 0:06:02]} hxg4 {[%emt 0:12:08]} 15. hxg4 {[%emt 0:00:22]} Nh6 {[%emt 0:00:05]} 16. f5 {[%emt 0:08:12]} Nxg4 {[%emt 0:00:13]} 17. Rf1 {[%emt 0:18:18]} gxf5 {[%emt 0:08:26]} 18. Rxf5 {[%emt 0:06:03]} e6 {[%emt 0:01:12]} 19. Bg5 {[%emt 0:08:25]} f6 {[%emt 0:04:28]} 20. exf6 {[%emt 0:03:19]} Nxf6 {[%emt 0:05:51]} 21. Rf2 {[%emt 0:13:10]} Qd7 {[%emt 0:04:43]} 22. Rg2 {[%emt 0:01:55]} Rf7 {[%emt 0:03:43]} 23. Qe2 {[%emt 0:02:49]} Nh7 {[%emt 0:02:39]} 24. Be3 {[%emt 0:02:35]} Kh8 {[%emt 0:04:28]} 25. Bf2 {[%emt 0:06:47]} Raf8 {[%emt 0:01:36]} 26. Kh1 {[%emt 0:00:20]} Rf5 {[%emt 0:04:39]} 27. Re1 {[%emt 0:09:35]} Qf7 {[%emt 0:00:46]} 28. Nd1 {[%emt 0:00:07]} Rh5+ {[%emt 0:04:03]} 29. Rh2 {[%emt 0:01:20]} Rxh2+ {[%emt 0:00:40]} 30. Kxh2 {[%emt 0:00:01]} Ng5 {[%emt 0:00:24]} 31. Kg2 {[%emt 0:00:53]} Ne4 {[%emt 0:01:06]} 32. Rh1+ {[%emt 0:02:49]} Kg8 {[%emt 0:00:01]} 33. Rh4 {[%emt 0:00:19]} Qf6 {[%emt 0:03:55]} 34. Rg4 {[%emt 0:00:21]} Rf7 {[%emt 0:01:44]} 35. Bg1 {[%emt 0:01:37]} Qh6 {[%emt 0:01:08]} 36. Be3 {[%emt 0:02:02]} Qh7 {[%emt 0:00:21]} 37. Nc3 {[%emt 0:00:15]} Nf6 {[%emt 0:00:39]} 38. Rg5 {[%emt 0:00:26]} Ne4 {[%emt 0:00:20]} 39. Rg4 {[%emt 0:00:06]} Nf6 {[%emt 0:00:28]} 40. Rg5 {[%emt 0:00:00]} Ne4 {[%emt 0:00:00]} 1/2-1/2

[Event "POL-chT 2 Liga 2019"]
[Site "Poronin"]
[Date "2019.09.10"]
[Round "4.40"]
[White "Galuszka, Tomasz"]
[Black "Leskiewicz, Ignacy"]
[Result "1/2-1/2"]
[ECO "B50"]
[WhiteElo "2222"]
[BlackElo "2116"]
[Annotator "NA"]
[PlyCount "80"]
[EventDate "2019.09.07"]
[EventType "team-tourn"]
[EventCountry "POL"]
[SourceTitle "playchess.com"]
[Source "ChessBase"]
[SourceQuality "1"]
[TimeControl "40/5400+30:1800+30"]

1. e4 {[%emt 0:00:00]} c5 {[%emt 0:00:00]} 2. Nf3 {[%emt 0:00:00]} d6 {[%emt 0:00:00]} 3. Nc3 {[%emt 0:00:02]} Nf6 {[%emt 0:05:07]} 4. g3 {[%emt 0:01:21]} Nc6 {[%emt 0:00:23]} 5. Bg2 {[%emt 0:00:17]} g6 {[%emt 0:01:10]} 6. d4 {[%emt 0:05:56]} cxd4 {[%emt 0:07:34]} 7. Nxd4 {[%emt 0:01:48]} Nxd4 {[%emt 0:02:56]} 8. Qxd4 {[%emt 0:00:02]} Bg7 {[%emt 0:00:08]} 9. O-O {[%emt 0:05:35]} O-O {[%emt 0:00:15]} 10. Qd3 {[%emt 0:01:45]} Be6 {[%emt 0:07:47]} 11. Re1 {[%emt 0:09:29]} Nd7 {[%emt 0:08:23]} 12. Nd5 {[%emt 0:04:50]} Rc8 {[%emt 0:02:56]} 13. c3 {[%emt 0:06:49]} Re8 {[%emt 0:13:31]} 14. Qe2 {[%emt 0:17:24]} Ne5 {[%emt 0:10:04]} 15. h3 {[%emt 0:08:22]} Nc4 {[%emt 0:03:34]} 16. f4 {[%emt 0:05:20]} b5 {[%emt 0:06:27]} 17. Qf2 {[%emt 0:05:16]} a5 {[%emt 0:04:47]} 18. a3 {[%emt 0:02:58]} Qd7 {[%emt 0:05:39]} 19. g4 {[%emt 0:03:12]} Qb7 {[%emt 0:03:42]} 20. Ne3 {[%emt 0:01:10]} Qb6 {[%emt 0:02:32]} 21. Nxc4 {[%emt 0:03:38]} Qxf2+ {[%emt 0:00:11]} 22. Kxf2 {[%emt 0:00:03]} Bxc4 {[%emt 0:00:57]} 23. Bd2 {[%emt 0:02:25]} e6 {[%emt 0:02:55]} 24. Bf1 {[%emt 0:02:35]} d5 {[%emt 0:01:11]} 25. exd5 {[%emt 0:00:38]} exd5 {[%emt 0:00:29]} 26. Rxe8+ {[%emt 0:00:49]} Rxe8 {[%emt 0:00:01]} 27. Re1 {[%emt 0:00:34]} Rxe1 {[%emt 0:01:12]} 28. Kxe1 {[%emt 0:00:09]} f5 {[%emt 0:01:58]} 29. Bg2 {[%emt 0:01:04]} Kf7 {[%emt 0:00:58]} 30. Be3 {[%emt 0:00:37]} b4 {[%emt 0:02:25]} 31. axb4 {[%emt 0:00:09]} axb4 {[%emt 0:00:04]} 32. Kd2 {[%emt 0:00:15]} bxc3+ {[%emt 0:00:30]} 33. bxc3 {[%emt 0:01:19]} Ke6 {[%emt 0:01:04]} 34. g5 {[%emt 0:01:09]} Bf8 {[%emt 0:01:41]} 35. h4 {[%emt 0:01:13]} Bd6 {[%emt 0:01:21]} 36. Bf3 {[%emt 0:00:09]} Bc7 {[%emt 0:00:29]} 37. h5 {[%emt 0:00:06]} Bd6 {[%emt 0:01:02]} 38. h6 {[%emt 0:00:06]} Bc7 {[%emt 0:00:44]} 39. Bd1 {[%emt 0:00:10]} Bb5 {[%emt 0:01:39]} 40. Bb3 {[%emt 0:00:00]} Bd6 {[%emt 0:00:00]} 1/2-1/2

[Event "POL-chT 2 Liga 2019"]
[Site "Poronin"]
[Date "2019.09.10"]
[Round "4.41"]
[White "Kwiatkowski, Wiktor"]
[Black "Koloczek, Maciej"]
[Result "1-0"]
[ECO "E81"]
[WhiteElo "2011"]
[BlackElo "1932"]
[Annotator "NA"]
[PlyCount "53"]
[EventDate "2019.09.07"]
[EventType "team-tourn"]
[EventCountry "POL"]
[SourceTitle "playchess.com"]
[Source "ChessBase"]
[SourceQuality "1"]
[TimeControl "40/5400+30:1800+30"]

1. d4 {[%emt 0:00:00]} Nf6 {[%emt 0:00:00]} 2. c4 {[%emt 0:00:00]} g6 {[%emt 0:00:00]} 3. Nc3 {[%emt 0:00:00]} Bg7 {[%emt 0:00:00]} 4. e4 {[%emt 0:00:00]} d6 {[%emt 0:00:01]} 5. f3 {[%emt 0:00:01]} O-O {[%emt 0:00:37]} 6. Nge2 {[%emt 0:00:07]} c5 {[%emt 0:01:56]} 7. d5 {[%emt 0:00:10]} e6 {[%emt 0:04:12]} 8. Ng3 {[%emt 0:00:22]} exd5 {[%emt 0:01:17]} 9. cxd5 {[%emt 0:00:05]} Na6 {[%emt 0:16:07]} 10. Be2 {[%emt 0:01:33]} Nc7 {[%emt 0:04:49]} 11. a4 {[%emt 0:00:54]} h5 {[%emt 0:12:46]} 12. Bg5 {[%emt 0:06:04]} Qe8 {[%emt 0:01:50]} 13. Nf1 {[%emt 0:08:23]} Nd7 {[%emt 0:03:13]} 14. Nd2 {[%emt 0:04:15]} Ne5 {[%emt 0:03:59]} 15. O-O {[%emt 0:02:16]} f6 {[%emt 0:03:52]} 16. Be3 {[%emt 0:00:36]} f5 {[%emt 0:03:18]} 17. f4 {[%emt 0:14:24]} Nf7 {[%emt 0:00:20]} 18. e5 {[%emt 0:01:15]} dxe5 {[%emt 0:03:20]} 19. Bxc5 {[%emt 0:00:07]} exf4 {[%emt 0:00:44]} 20. Bc4 {[%emt 0:10:11]} Ne5 {[%emt 0:07:18]} 21. Re1 {[%emt 0:02:08]} Qd8 {[%emt 0:08:26]} 22. Bxf8 {[%emt 0:01:53]} Qxf8 {[%emt 0:00:59]} 23. d6+ {[%emt 0:02:15]} Be6 {[%emt 0:00:45]} 24. dxc7 {[%emt 0:05:03]} Bxc4 {[%emt 0:02:08]} 25. Nxc4 {[%emt 0:01:16]} Nxc4 {[%emt 0:00:52]} 26. Qd5+ {[%emt 0:00:46]} Qf7 {[%emt 0:00:20]} 27. Qxb7 {[%emt 0:01:28]} 1-0